fUSD/lending_fUSD_20240913
["ID","MTS","AMOUNT","RATE_DAILY","PERIOD"]
[337919286,1726205460792,-2106.28,0.00013783,2]
[337919288,1726205460803,-500.0,0.00013783,2]
[337919290,1726205460813,-1084.24,0.00013783,2]
[337919292,1726205460825,-151.0,0.00013783,2]
[337919294,1726205460838,-1081.89,0.00013783,2]
[337919296,1726205460848,-1019.96,0.00013783,2]
[337919298,1726205460858,-2410.14,0.00013783,2]
[337919300,1726205460869,-1232.19,0.00013783,2]
[337919302,1726205460880,-3808.65,0.00013783,2]
[337919304,1726205460891,-2301.15,0.00013783,2]
[337919306,1726205460901,-1523.38,0.00013783,2]
[337919308,1726205460913,-889.8,0.00013783,2]
[337919310,1726205460924,-500.0,0.00013783,2]
[337919312,1726205460935,-1206.39,0.00013783,2]
[337919314,1726205460945,-500.0,0.00013783,2]
[337919316,1726205460956,-1048.53,0.00013783,2]
[337919318,1726205460966,-1410.31,0.00013783,2]
[337919320,1726205460976,-5085.8,0.00013783,2]
[337919322,1726205460987,-1022.93,0.00013783,2]
[337919324,1726205460997,-2683.1,0.00013783,2]
[337919326,1726205461008,-4477.96,0.00013783,2]
[337919328,1726205461018,-4499.93,0.00013783,2]
[337919330,1726205461029,-2755.4,0.00013783,2]
[337919332,1726205461041,-3098.4,0.00013783,2]
[337919334,1726205461053,-2640.08,0.00013783,2]
[337919337,1726205461065,-500.0,0.00013783,2]
[337919339,1726205461075,-1039.78,0.00013783,2]
[337919341,1726205461087,-2742.18,0.00013783,2]
[337919343,1726205461100,-2398.74,0.00013783,2]
[337919345,1726205461111,-917.16,0.00013783,2]
[337919348,1726205461124,-2702.48,0.00013783,2]
[337919350,1726205461135,-1626.5,0.00013783,2]
[337919352,1726205461146,-2729.16,0.00013783,2]
[337919354,1726205461158,-2089.44,0.00013783,2]
[337919356,1726205461169,-4563.4,0.00013783,2]
[337919358,1726205461180,-2223.71,0.00013783,2]
[337919360,1726205461191,-3554.21,0.00013783,2]
[337919362,1726205461202,-500.0,0.00013783,2]
[337919365,1726205461214,-500.0,0.00013783,2]
[337919367,1726205461225,-1177.34,0.00013783,2]
[337919368,1726205461234,-509.42,0.00013783,2]
[337919370,1726205461245,-942.17,0.00013783,2]
[337919372,1726205461255,-5015.69,0.00013783,2]
[337919374,1726205461264,-885.91,0.00013783,2]
[337919376,1726205461273,-500.0,0.00013783,2]
[337919378,1726205461283,-500.0,0.00013783,2]
[337919380,1726205461292,-8816.97,0.00013783,2]
[337919382,1726205461301,-8943.71,0.00013783,2]
[337919384,1726205461311,-1946.96,0.00013783,2]
[337919386,1726205461320,-932.14,0.00013783,2]
[337919388,1726205461329,-2660.6,0.00013783,2]
[337919389,1726205461339,-6057.59,0.00013783,2]
[337919391,1726205461348,-1630.93,0.00013783,2]
[337919393,1726205461359,-500.0,0.00013783,2]
[337919395,1726205461368,-1513.8,0.00013783,2]
[337919397,1726205461378,-1087.61,0.00013783,2]
[337919399,1726205461388,-13847.96,0.00013783,2]
[337919401,1726205461397,-1509.93,0.00013783,2]
[337919403,1726205461406,-500.0,0.00013783,2]
[337919405,1726205461415,-851.6,0.00013783,2]
[337919406,1726205461425,-1127.79,0.00013783,2]
[337919408,1726205461434,-3465.9,0.00013783,2]
[337919410,1726205461444,-4059.75,0.00013783,2]
[337919412,1726205461453,-151.0,0.00013784,2]
[337919414,1726205461463,-500.0,0.00013785,2]
[337919416,1726205461472,-500.0,0.00013785,2]
[337919418,1726205461481,-599.81,0.00013785,2]
[337919420,1726205461491,-500.0,0.00013785,2]
[337919422,1726205461500,-552.19,0.00013785,2]
[337919424,1726205461509,-500.0,0.00013785,2]
[337919426,1726205461519,-500.0,0.00013785,2]
[337919427,1726205461528,-500.0,0.00013785,2]
[337919429,1726205461537,-2063.87,0.00013785,2]
[337919431,1726205461547,-775.49,0.00013785,2]
[337919433,1726205461556,-500.0,0.00013785,2]
[337919435,1726205461566,-638.01530682,0.00013785,2]
[337919437,1726205461575,-1189.85,0.00013785,2]
[337919439,1726205461585,-2184.62,0.00013785,2]
[337919441,1726205461594,-1128.96,0.00013785,2]
[337919443,1726205461603,-840.44,0.00013785,2]
[337919445,1726205461613,-650.11,0.00013785,2]
[337919447,1726205461622,-500.0,0.00013785,2]
[337919449,1726205461632,-837.28,0.00013785,2]
[337919451,1726205461641,-840.9,0.00013785,2]
[337919453,1726205461650,-500.0,0.00013785,2]
[337919454,1726205461659,-500.0,0.00013785,2]
[337919456,1726205461669,-2588.11,0.00013785,2]
[337919458,1726205461678,-1882.55,0.00013785,2]
[337919460,1726205461687,-2612.84,0.00013785,2]
[337919462,1726205461697,-500.0,0.00013785,2]
[337919464,1726205461706,-528.24,0.00013785,2]
[337919466,1726205461716,-2373.73,0.00013785,2]
[337919468,1726205461725,-500.0,0.00013785,2]
[337919470,1726205461735,-2433.8,0.00013785,2]
[337919472,1726205461744,-500.0,0.00013785,2]
[337919474,1726205461753,-500.0,0.00013785,2]
[337919476,1726205461763,-2175.52,0.00013785,2]
[337919478,1726205461772,-3237.78,0.00013785,2]
[337919479,1726205461781,-182.778499,0.00013785,2]
[337919481,1726205461790,-642.34,0.00013785,2]
[337919483,1726205461799,-693.3359389,0.00013785,2]
[337919540,1726205462381,-580.5241446,0.00013785,2]
[337919544,1726205462406,-669.9699165,0.00013785,2]
[337919546,1726205462424,-77.88532281,0.00013785,2]
[337919601,1726205463185,-422.11467719,0.00013785,2]
[337919603,1726205463195,-189.85232281,0.00013785,2]
[337919605,1726205463207,-1714.07767719,0.00013785,2]
[337919607,1726205463216,-976.82,0.00013785,2]
[337919609,1726205463225,-500.0,0.00013785,2]
[337919611,1726205463235,-677.23,0.00013785,2]
[337919613,1726205463245,-500.0,0.00013785,2]
[337919615,1726205463254,-3336.02,0.00013785,2]
[337919617,1726205463264,-1064.91,0.00013785,2]
[337919619,1726205463274,-3819.14,0.00013785,2]
[337919621,1726205463284,-4840.13,0.00013785,2]
[337919623,1726205463294,-988.54,0.00013785,2]
[337919625,1726205463303,-3194.99,0.00013785,2]
[337919627,1726205463313,-3785.99,0.00013785,2]
[337919629,1726205463323,-375.47573432,0.00013785,2]
[337919631,1726205463335,-644.61426568,0.00013785,2]
[337919633,1726205463345,-3639.15,0.00013785,2]
[337919635,1726205463355,-4129.0,0.00013785,2]
[337919637,1726205463365,-704.84,0.00013785,2]
[337919639,1726205463376,-1379.11,0.00013785,2]
[337919641,1726205463386,-2409.35,0.00013785,2]
[337919643,1726205463396,-4680.98,0.00013785,2]
[337919645,1726205463406,-268.26525,0.00013785,2]
[337919647,1726205463415,-15473.60307973,0.0001379,2]
[337919649,1726205463427,-2165.12646613,0.0001379,2]
[337919657,1726205463503,-302.0,0.00013074,2]
[337919659,1726205463515,-508.0,0.00013074,2]
[337919661,1726205463525,-1160.32821834,0.0001379,2]
[337919663,1726205463536,-957.52,0.0001379,2]
[337919665,1726205463548,-1794.36314389,0.0001379,2]
[337919667,1726205463563,-344.849717,0.0001379,2]
[337919670,1726205463575,-273.5,0.0001379,2]
[337919675,1726205463619,-84206.71249312,0.0001379,2]
[337919677,1726205463631,-371.88291753,0.0001379,2]
[337919679,1726205463644,-1324.8,0.0001379,2]
[337919681,1726205463655,-252.79302317,0.0001379,2]
[337919684,1726205463670,-896.1847932,0.0001379,2]
[337919686,1726205463681,-9309.10477623,0.0001379,2]
[337919688,1726205463693,-5114.97780404,0.0001379,2]
[337919745,1726205464271,-1600.0,0.0001379,2]
[337920376,1726205537960,1064.10876101,0.00012,4]
[337920377,1726205684483,156.77,0.00010959,2]
[337920378,1726205833825,309.04,0.00010571,2]
[337920379,1726206204287,155.01,0.00010959,2]
[337920380,1726206302511,150.0,0.00012156,2]
[337920381,1726206311151,150.0,0.00012156,2]
[337920382,1726206354080,312.6,0.00010249,2]
[337920383,1726206502054,1050.0,0.00011,2]
[337920384,1726206502638,516.0,0.00011,8]
[337920385,1726206531737,439.11,0.0001212,2]
[337920386,1726206586257,1000.0,0.0001212,2]
[337920387,1726206600892,650.46,0.0001212,2]
[337920388,1726206610446,-158.92,0.00012212,2]
[337920390,1726206610472,-250.0,0.00012222,2]
[337920391,1726206610500,-338.68,0.00012303,2]
[337920393,1726206610525,-176.05372906,0.00012447,2]
[337920394,1726206631961,-98.94627094,0.00012447,2]
[337920395,1726206631971,-312.6,0.00012513,2]
[337920396,1726206631980,-109.89704124,0.000127,4]
[337920397,1726206631991,-190.10295876,0.000127,4]
[337920398,1726206632000,-600.0,0.000128,4]
[337920399,1726206632009,-150.0,0.00012856,2]
[337920400,1726206632019,-300.0,0.00012856,2]
[337920401,1726206632028,-1230.14001621,0.00012857,2]
[337920402,1726206632387,-2836.32857699,0.00012857,2]
[337920403,1726206632398,-615.77052,0.00012857,2]
[337920404,1726206632408,-496.77,0.00012857,2]
[337920405,1726206632419,-287.37338502,0.00012857,2]
[337920406,1726206632430,-300.0,0.00012857,2]
[337920407,1726206632442,-413.47322908,0.00012857,2]
[337920408,1726206632453,-2519.10879577,0.00012857,2]
[337920409,1726206632463,-10040.96790641,0.00012857,2]
[337920410,1726206632474,-4842.93689012,0.00012857,2]
[337920411,1726206632489,-777.495996,0.00012857,2]
[337920412,1726206632499,-495.46664156,0.00012857,2]
[337920413,1726206632510,-1703.61103245,0.00012857,2]
[337920414,1726206632521,-1293.56255041,0.00012857,2]
[337920415,1726206632530,-1517.25177175,0.00012857,2]
[337920416,1726206632540,-1601.10815905,0.00012858,2]
[337920417,1726206632553,-494.82590862,0.00012858,2]
[337920418,1726206632582,-404.06593233,0.00012858,2]
[337920419,1726206632591,-1000.0,0.000129,4]
[337920420,1726206632600,-150.72,0.00012947,2]
[337920421,1726206632610,-150.72,0.00012948,2]
[337920422,1726206632619,-2802.62,0.00012956,2]
[337920423,1726206632629,-1640.9496509,0.00012956,2]
[337920425,1726206638095,-684.8903491,0.00012956,2]
[337920426,1726206638104,-563.93692583,0.00012956,2]
[337920588,1726206639952,-290.52542,0.00012956,2]
[337920760,1726206641938,-1756.67554109,0.00012956,2]
[337920774,1726206642081,-581.0751696,0.00012956,2]
[337920864,1726206642943,-32.85694348,0.00012956,2]
[337920866,1726206642952,-391.45668339,0.00012956,2]
[337920868,1726206642963,-2257.25906638,0.00012956,2]
[337920874,1726206643016,-227.76425023,0.00012956,2]
[337920876,1726206643025,-727.48,0.00012956,2]
[337920878,1726206643034,-2128.52,0.00012956,2]
[337920880,1726206643043,-1061.76,0.00012956,2]
[337920881,1726206643053,-2224.6,0.00012956,2]
[337920883,1726206643062,-8615.48,0.00012956,2]
[337920886,1726206643072,-2522.49,0.00012956,2]
[337920887,1726206643082,-3651.75,0.00012956,2]
[337920889,1726206643091,-2121.77,0.00012956,2]
[337920891,1726206643100,-3262.97,0.00012956,2]
[337920893,1726206643109,-500.0,0.00012956,2]
[337920895,1726206643118,-1247.37,0.00012956,2]
[337920897,1726206643128,-1077.98,0.00012956,2]
[337920899,1726206643137,-696.5,0.00012956,2]
[337920901,1726206643147,-4002.3,0.00012956,2]
[337920903,1726206643157,-1202.27,0.00012956,2]
[337920905,1726206643168,-500.0,0.00012956,2]
[337920907,1726206643179,-6515.76,0.00012956,2]
[337920909,1726206643188,-773.08,0.00012956,2]
[337920911,1726206643197,-976.74,0.00012956,2]
[337920913,1726206643207,-1106.88,0.00012956,2]
[337920915,1726206643216,-500.0,0.00012956,2]
[337920917,1726206643225,-500.0,0.00012956,2]
[337920919,1726206643235,-602.61,0.00012956,2]
[337920921,1726206643244,-1006.82,0.00012957,2]
[337920923,1726206643256,-1893.7,0.00012957,2]
[337920925,1726206643265,-500.0,0.00012957,2]
[337920927,1726206643276,-500.0,0.00012957,2]
[337920929,1726206643287,-1210.94,0.00012957,2]
[337920931,1726206643298,-500.0,0.00012957,2]
[337920933,1726206643308,-996.1,0.00012957,2]
[337920935,1726206643317,-753.38,0.00012957,2]
[337920937,1726206643326,-500.0,0.00012957,2]
[337920939,1726206643335,-500.0,0.00012957,2]
[337920941,1726206643344,-500.0,0.00012957,2]
[337920943,1726206643353,-2367.28,0.00012957,2]
[337920944,1726206643362,-500.0,0.00012957,2]
[337920946,1726206643371,-500.0,0.00012957,2]
[337920948,1726206643380,-605.47,0.00012957,2]
[337920950,1726206643390,-500.0,0.00012957,2]
[337920952,1726206643400,-2561.12,0.00012957,2]
[337920955,1726206643411,-2263.74,0.00012957,2]
[337920957,1726206643421,-500.0,0.00012957,2]
[337920959,1726206643430,-500.0,0.00012957,2]
[337920961,1726206643440,-2533.4,0.00012957,2]
[337920963,1726206643449,-500.0,0.00012957,2]
[337920965,1726206643459,-500.0,0.00012957,2]
[337920967,1726206643470,-1839.53,0.00012957,2]
[337920969,1726206643479,-643.66,0.00012957,2]
[337920971,1726206643488,-500.0,0.00012957,2]
[337920973,1726206643497,-500.0,0.00012957,2]
[337920975,1726206643507,-500.0,0.00012957,2]
[337920978,1726206643516,-550.94,0.00012957,2]
[337920981,1726206643525,-264.44374279,0.00012957,2]
[337920985,1726206643535,-500.0,0.00012957,2]
[337920988,1726206643544,-526.33,0.00012957,2]
[337920989,1726206643553,-2556.08,0.00012957,2]
[337920992,1726206643562,-500.0,0.00012957,2]
[337920995,1726206643572,-500.0,0.00012957,2]
[337920997,1726206643581,-1252.22,0.00012957,2]
[337920999,1726206643591,-1923.37,0.00012957,2]
[337921001,1726206643600,-500.0,0.00012957,2]
[337921003,1726206643609,-500.0,0.00012957,2]
[337921005,1726206643620,-500.0,0.00012957,2]
[337921007,1726206643629,-2850.21,0.00012957,2]
[337921009,1726206643639,-500.0,0.00012957,2]
[337921011,1726206643647,-557.56,0.00012957,2]
[337921013,1726206643657,-500.0,0.00012957,2]
[337921015,1726206643667,-500.0,0.00012957,2]
[337921017,1726206643676,-747.41,0.00012957,2]
[337921019,1726206643685,-500.0,0.00012957,2]
[337921021,1726206643695,-1163.66,0.00012957,2]
[337921022,1726206643704,-1392.66,0.00012957,2]
[337921024,1726206643714,-500.0,0.00012957,2]
[337921026,1726206643723,-500.0,0.00012957,2]
[337921028,1726206643733,-500.0,0.00012957,2]
[337921030,1726206643743,-500.0,0.00012957,2]
[337921032,1726206643752,-3325.02,0.00012957,2]
[337921034,1726206643762,-500.0,0.00012957,2]
[337921036,1726206643771,-500.0,0.00012957,2]
[337921038,1726206643781,-500.0,0.00012957,2]
[337921040,1726206643791,-3099.31,0.00012957,2]
[337921042,1726206643801,-1998.43,0.00012957,2]
[337921044,1726206643810,-936.0,0.00012957,2]
[337921046,1726206643820,-2079.3,0.00012957,2]
[337921048,1726206643830,-500.0,0.00012957,2]
[337921050,1726206643840,-1619.69,0.00012957,2]
[337921052,1726206643849,-1887.82,0.00012957,2]
[337921054,1726206643859,-2736.06,0.00012957,2]
[337921056,1726206643868,-2270.69,0.00012957,2]
[337921058,1726206643878,-500.0,0.00012957,2]
[337921060,1726206643887,-1331.05,0.00012957,2]
[337921062,1726206643897,-2680.36,0.00012957,2]
[337921064,1726206643907,-500.0,0.00012957,2]
[337921066,1726206643916,-1373.49,0.00012957,2]
[337921068,1726206643927,-846.04,0.00012957,2]
[337921070,1726206643936,-1506.01,0.00012957,2]
[337921072,1726206643946,-1415.14,0.00012957,2]
[337921073,1726206643955,-3254.12,0.00012957,2]
[337921075,1726206643964,-2393.28,0.00012957,2]
[337921077,1726206643973,-1187.14,0.00012957,2]
[337921079,1726206643982,-1212.21,0.00012957,2]
[337921081,1726206643992,-500.0,0.00012957,2]
[337921083,1726206644002,-1686.36,0.00012957,2]
[337921085,1726206644012,-1094.32,0.00012957,2]
[337921087,1726206644022,-500.0,0.00012957,2]
[337921089,1726206644032,-749.21,0.00012957,2]
[337921091,1726206644041,-2262.02,0.00012957,2]
[337921093,1726206644051,-500.0,0.00012957,2]
[337921095,1726206644061,-500.0,0.00012957,2]
[337921097,1726206644070,-500.0,0.00012957,2]
[337921099,1726206644080,-1592.01,0.00012957,2]
[337921101,1726206644090,-1366.64,0.00012957,2]
[337921103,1726206644100,-500.0,0.00012957,2]
[337921105,1726206644109,-49415.9,0.00012957,2]
[337921107,1726206644117,-666.42,0.00012957,2]
[337921109,1726206644127,-1287.51,0.00012957,2]
[337921111,1726206644137,-2207.2,0.00012957,2]
[337921113,1726206644146,-2355.68,0.00012957,2]
[337921115,1726206644156,-912.05,0.00012957,2]
[337921117,1726206644165,-6959.13,0.00012957,2]
[337921118,1726206644174,-2901.71,0.00012957,2]
[337921120,1726206644184,-500.0,0.00012957,2]
[337921122,1726206644193,-500.0,0.00012957,2]
[337921124,1726206644202,-503.93,0.00012957,2]
[337921126,1726206644211,-1029.17,0.00012957,2]
[337921128,1726206644221,-701.49,0.00012957,2]
[337921130,1726206644230,-2451.2,0.00012957,2]
[337921132,1726206644240,-1940.55,0.00012957,2]
[337921134,1726206644249,-500.0,0.00012957,2]
[337921135,1726206644260,-1002.84,0.00012957,2]
[337921137,1726206644270,-500.0,0.00012957,2]
[337921139,1726206644280,-1431.08,0.00012957,2]
[337921141,1726206644289,-1013.1,0.00012957,2]
[337921176,1726206644622,-4480.93,0.00012957,2]
[337921178,1726206644634,-758.3,0.00012957,2]
[337921180,1726206644644,-500.0,0.00012957,2]
[337921182,1726206644653,-1715.93,0.00012957,2]
[337921184,1726206644663,-2334.55,0.00012957,2]
[337921186,1726206644673,-627.79,0.00012957,2]
[337921188,1726206644682,-500.0,0.00012957,2]
[337921190,1726206644692,-2716.75,0.00012957,2]
[337921192,1726206644702,-500.0,0.00012957,2]
[337921194,1726206644712,-500.0,0.00012957,2]
[337921196,1726206644721,-500.0,0.00012957,2]
[337921198,1726206644731,-3795.98,0.00012957,2]
[337921201,1726206644741,-840.68,0.00012957,2]
[337921202,1726206644751,-2578.66,0.00012957,2]
[337921204,1726206644760,-615.0,0.00012957,2]
[337921206,1726206644769,-500.0,0.00012957,2]
[337921208,1726206644778,-500.0,0.00012957,2]
[337921210,1726206644788,-1976.03,0.00012957,2]
[337921212,1726206644797,-4305.45,0.00012957,2]
[337921214,1726206644806,-4172.59,0.00012957,2]
[337921216,1726206644816,-500.0,0.00012957,2]
[337921218,1726206644826,-2079.96,0.00012957,2]
[337921220,1726206644836,-519.44,0.00012957,2]
[337921221,1726206644845,-1917.82,0.00012957,2]
[337921223,1726206644855,-962.27,0.00012957,2]
[337921225,1726206644864,-1317.49,0.00012957,2]
[337921227,1726206644874,-3233.27,0.00012957,2]
[337921229,1726206644884,-3139.19,0.00012957,2]
[337921231,1726206644893,-4425.8,0.00012957,2]
[337921232,1726206644903,-1095.27,0.00012957,2]
[337921234,1726206644913,-1346.3,0.00012957,2]
[337921237,1726206644924,-2458.1,0.00012957,2]
[337921238,1726206644934,-377.70455807,0.00012957,2]
[337921240,1726206644943,-500.0,0.00012957,2]
[337921242,1726206644952,-554.54,0.00012957,2]
[337921244,1726206644962,-2007.77,0.00012957,2]
[337921246,1726206644974,-9619.01610313,0.00012957,2]
[337921378,1726206646368,-1416.76389687,0.00012957,2]
[337921381,1726206646380,-258.43610313,0.00012957,2]
[337921384,1726206646406,-3337.89376783,0.00012957,2]
[337921387,1726206646419,-166.59012904,0.00012957,2]
[337921388,1726206646428,-154.97678427,0.00012957,2]
[337921391,1726206646443,-1217.17321573,0.00012957,2]
[337921393,1726206646453,-500.0,0.00012957,2]
[337921395,1726206646462,-51.09713004,0.00012957,2]
[337921397,1726206646473,-544.93286996,0.00012957,2]
[337921399,1726206646483,-500.0,0.00012957,2]
[337921401,1726206646494,-4173.5,0.00012957,2]
[337921403,1726206646506,-954.04,0.00012957,2]
[337921405,1726206646516,-4572.59,0.00012957,2]
[337921406,1726206646525,-2675.07,0.00012957,2]
[337921408,1726206646534,-500.0,0.00012957,2]
[337921410,1726206646543,-1073.13704955,0.00012957,2]
[337923397,1726206721426,-150.0,0.00012421,2]
[337923398,1726206729184,56.19184628,0.000124,2]
[337923399,1726206779690,334.91901394,9.954e-05,2]
[337923400,1726206780459,286.37844699,9.954e-05,2]
[337923401,1726206854444,340.85,0.00010241,2]
[337923402,1726206912468,171.98,0.00012141,2]
[337923403,1726206920537,400.0,0.00012164,5]
[337923404,1726206948108,1811.96,0.00012153,2]
[337923406,1726206987304,7496.69,0.00012145,2]
[337923408,1726206992454,250.0,0.00012145,2]
[337923409,1726207014165,274.93,0.00012145,2]
[337923411,1726207019296,350.0,0.00012164,5]
[337923415,1726207057148,500.0,0.00012138,2]
[337923416,1726207058390,23900.0,0.00012138,2]
[337923417,1726207078629,200.0,0.00012134,2]
[337923418,1726207084632,2603.77,0.00012134,2]
[337923419,1726207109449,332.23,0.00012114,2]
[337923421,1726207116705,161.3,0.00012114,2]
[337923422,1726207133067,250.0,0.0001208,2]
[337923423,1726207138697,169.97,0.00012098,2]
[337923425,1726207208981,158.92,0.00012157,2]
[337923426,1726207258321,350.0,0.00012164,5]
[337923427,1726207267557,250.0,0.00012074,2]
[337923428,1726207272622,161.4,0.00010959,2]
[337923429,1726207277788,10729.91,0.00012109,2]
[337923430,1726207351365,350.0,0.00012164,5]
[337923431,1726207353228,2323.77,0.00012107,2]
[337923432,1726207366024,358.82,0.00012164,5]
[337923433,1726207383587,213.2,0.00012096,2]
[337923435,1726207444461,342.45,0.00010192,2]
[337923437,1726207477541,1540.0,0.00012085,2]
[337923438,1726207507757,213.42558761,0.00012132,2]
[337923439,1726207517598,155.85555883,0.00012132,2]
[337923440,1726207564125,150.55422453,0.00012071,2]
[337923441,1726207574517,840.0,0.00012103,2]
[337923446,1726207672902,166.11,0.00012086,2]
[337923447,1726207692790,187.54,0.00012092,2]
[337923448,1726207701777,-3529.91995659,0.00012347,2]
[337923449,1726207701839,-1698.09111221,0.00012347,2]
[337923450,1726207713746,270.94,0.00012087,2]
[337923469,1726207832068,-5398.6520312,0.00012347,2]
[337923470,1726207832078,-342.45,0.00012455,2]
[337923471,1726207832087,-200.0,0.000127,4]
[337923472,1726207832097,-500.0,0.000128,4]
[337923473,1726207832107,-1971.82458,0.0001283,2]
[337923474,1726207832117,-320.31531078,0.00012855,2]
[337923475,1726207832127,-300.0,0.00012899,2]
[337923476,1726207832137,-1092.73315228,0.000129,2]
[337923477,1726207832147,-700.0,0.000129,4]
[337923478,1726207832157,-499.99,0.000129,2]
[337923479,1726207832166,-150.76,0.00012945,2]
[337923480,1726207832176,-150.76,0.00012946,2]
[337923481,1726207832186,-150.0,0.00012953,2]
[337923482,1726207832195,-500.0,0.00012953,2]
[337923483,1726207832204,-740.86,0.00012953,2]
[337923484,1726207832213,-1152.17,0.00012954,2]
[337923485,1726207832223,-936.04,0.00012954,2]
[337923486,1726207832233,-577.5,0.00012954,2]
[337923487,1726207832242,-47356.9,0.00012954,2]
[337923488,1726207832252,-6669.17,0.00012954,2]
[337923489,1726207832261,-2780.8,0.00012954,2]
[337923490,1726207832278,-500.0,0.00012954,2]
[337923491,1726207832287,-1371.45,0.00012954,2]
[337923492,1726207832296,-1644.43,0.00012954,2]
[337923493,1726207832306,-601.64,0.00012954,2]
[337923494,1726207832316,-805.65,0.00012954,2]
[337923495,1726207832327,-2471.22,0.00012954,2]
[337923496,1726207832337,-3998.73,0.00012954,2]
[337923497,1726207832346,-1893.7,0.00012954,2]
[337923498,1726207832355,-2685.85,0.00012954,2]
[337923499,1726207832366,-2355.68,0.00012954,2]
[337923500,1726207832376,-1290.2,0.00012954,2]
[337923501,1726207832385,-3090.69,0.00012954,2]
[337923502,1726207832396,-10575.95,0.00012954,2]
[337923503,1726207832405,-2228.93,0.00012954,2]
[337923504,1726207832414,-1924.11,0.00012954,2]
[337923505,1726207832424,-3999.61,0.00012954,2]
[337923506,1726207832433,-2756.63,0.00012954,2]
[337923507,1726207832443,-2039.83,0.00012954,2]
[337923508,1726207832452,-4382.07,0.00012954,2]
[337923509,1726207832461,-2563.61,0.00012954,2]
[337923511,1726207832471,-697.17,0.00012954,2]
[337923513,1726207832481,-3668.01,0.00012954,2]
[337923515,1726207832490,-15000.85,0.00012954,2]
[337923516,1726207832500,-1017.52,0.00012954,2]
[337923519,1726207832509,-2679.4,0.00012954,2]
[337923523,1726207832520,-2417.39,0.00012954,2]
[337923525,1726207832530,-39510.23,0.00012954,2]
[337923528,1726207832539,-6415.55,0.00012954,2]
[337923531,1726207832548,-2131.91,0.00012954,2]
[337923533,1726207832558,-2033.36,0.00012954,2]
[337923535,1726207832567,-2847.91,0.00012954,2]
[337923538,1726207832576,-2357.11,0.00012954,2]
[337923541,1726207832586,-1449.8,0.00012954,2]
[337923544,1726207832595,-8256.5,0.00012954,2]
[337923547,1726207832604,-500.0,0.00012954,2]
[337923550,1726207832613,-9236.73,0.00012954,2]
[337923553,1726207832623,-1373.91,0.00012954,2]
[337923556,1726207832632,-3499.59,0.00012954,2]
[337923558,1726207832641,-1033.06,0.00012954,2]
[337923560,1726207832650,-2381.27,0.00012954,2]
[337923562,1726207832659,-3127.01,0.00012954,2]
[337923564,1726207832668,-3835.54,0.00012954,2]
[337923566,1726207832678,-7411.59,0.00012954,2]
[337923568,1726207832687,-6205.84,0.00012954,2]
[337923569,1726207832697,-1195.4,0.00012954,2]
[337923571,1726207832706,-693.82,0.00012954,2]
[337923573,1726207832716,-6244.27,0.00012954,2]
[337923575,1726207832725,-500.0,0.00012954,2]
[337923577,1726207832735,-8864.5,0.00012954,2]
[337923579,1726207832745,-667.48,0.00012954,2]
[337923581,1726207832754,-1060.76,0.00012954,2]
[337923583,1726207832764,-964.87,0.00012955,2]
[337923585,1726207832774,-500.0,0.00012955,2]
[337923587,1726207832784,-1814.79,0.00012955,2]